[Event "USA Championship Women 2022"]
[Site "Saint Louis"]
[Date "2022.10.15"]
[Round "10.6"]
[White "Yu, Jennifer"]
[Black "Paikidze, Nazi"]
[Result "1/2-1/2"]
[ECO "A17"]
[WhiteElo "2297"]
[BlackElo "2354"]
[Annotator "TA"]
[PlyCount "110"]
[EventDate "2022.09.05"]
[EventType "tourn"]
[EventCountry "USA"]
[SourceTitle "playchess.com"]
[Source "ChessBase"]
[SourceQuality "1"]
[TimeControl "40/5400+30:1800+30"]

{[%evp 9,110,-2,6,-25,-31,-112,-89,-117,-114,-120,-60,-66,-81,-82,-72,-67,-83,-170,-151,-158,-136,-156,-151,-130,-133,-158,-119,-132,-54,-83,0,0,110,127,119,0,0,0,130,124,147,113,327,329,379,-92,149,159,164,166,174,183,175,166,190,175,183,166,226,140,164,137,137,142,162,14,18,0,0,0,0,-111,-101,-112,-127,-168,-158,-136,0,0,0,0,0,0,0,0,0,0,0,0,0,0,0,0,0,0,0,0,0,0,0,0,0]} 1. Nf3 {[%emt 0:00:06]} Nf6 {[%emt 0:00:06]} 2. c4 {[%emt 0:00:11]} e6 {[%emt 0:00:06]} 3. Nc3 {[%emt 0:00:25]} Bb4 {[%emt 0:00:06]} 4. Qb3 {[%emt 0:04:23]} c5 {[%emt 0:01:31]} 5. a3 {[%emt 0:15:05]} Ba5 {[%emt 0:01:14]} 6. e4 {[%emt 0:02:09] A17: English Opening: 1...Nf6 with ...Bb4.} Nc6 {[%emt 0:01:01]} 7. e5 {[%emt 0:09:27]} ({Better is} 7. Bd3 $15) 7... Ng4 $17 {[%emt 0:03:57]} 8. Ne4 {[%emt 0:00:05] [#] Black is better.} O-O $146 {[%emt 0:02:39]} (8... Ngxe5 $6 9. Nxe5 Nxe5 10. Qg3 $11) ({Predecessor:} 8... Ngxe5 9. Nxe5 Nxe5 10. Qg3 Ng6 11. b4 cxb4 12. Nd6+ Kf8 13. Rb1 bxa3 14. Bxa3 Kg8 {1-0 (24) Wiedner,R (2191)-Pachman,L (2320) St Veit 1999}) 9. Nxc5 {[%emt 0:01:37]} Bb6 {[%emt 0:13:43]} (9... Ncxe5 10. h3 Nxf3+ 11. Qxf3 $15) (9... Ngxe5 10. Nxe5 Nxe5 11. Qe3) (9... d6 $17 10. Nxb7 Bxb7 11. Qxb7 Rc8) 10. Nd3 $15 {[%emt 0:11:48]} d6 {[%emt 0:01:54][%cal Rd6e5,Bd7d6,Bd6c5,Bc5d4][%mdl 32]} 11. c5 {[%emt 0:02:40]} dxc5 {[%emt 0:10:18]} (11... Bxc5 12. Qc4 Nh6 13. Nxc5 dxc5 14. b4 $11 (14. Qxc5 Nf5 $15)) 12. Qc4 {[%emt 0:15:36][%csl LRc5,LRg4]} Nh6 {[%emt 0:01:51]} 13. Nf4 {[%emt 0:03:08]} (13. Nxc5 $17 Qc7 14. d4) 13... Bd7 {[%emt 0:07:54]} 14. Bd3 {[%emt 0:04:17]} Nd4 {[%emt 0:03:06]} 15. Nxd4 {[%emt 0:02:30]} cxd4 {[%emt 0:00:06]} 16. Be4 {[%emt 0:05:37]} Qg5 {[%emt 0:01:56][%csl LRe5,LRf4]} 17. Nd3 {[%emt 0:04:45]} Ng4 {[%emt 0:16:42]} 18. h4 {[%emt 0:05:51]} Qd8 {[%emt 0:03:07]} (18... Nxe5 19. hxg5 Nxc4 20. Bxh7+ Kh8 21. b3 $16) (18... Qh5 $17 19. Bxb7 Rab8) 19. f3 {[%emt 0:01:27]} f5 {[%emt 0:10:40]} (19... Rc8 $17 20. Qb3 Nh6) 20. Bxb7 $11 {[%emt 0:00:41]} Rb8 {[%emt 0:01:15]} (20... Qb8 $1 $11 21. Bxa8 Nxe5 22. Nxe5 Qxe5+ 23. Qe2 Qg3+ 24. Kf1 (24. Qf2 Qe5+ 25. Qe2 Qg3+ 26. Qf2 Qe5+ 27. Qe2 $11) 24... d3) 21. Ba6 $16 {[%emt 0:00:11]} Nh6 {[%emt 0:00:52]} 22. f4 {[%emt 0:01:18]} ({White should play} 22. a4 $16) 22... Qe7 $1 $11 {[%emt 0:01:32][%cal Of8c8]} 23. b4 {[%emt 0:00:31]} Qf7 {[%emt 0:03:53]} (23... Ng4 $11) 24. Bb2 $16 {[%emt 0:00:53]} Qg6 {[%emt 0:00:25][%cal Of8c8]} 25. O-O $36 {[%emt 0:02:02][%cal Bh1f1,Bf1f3,Bf3h3][%mdl 2080] White is really pushing.} Qg3 $2 {[%emt 0:00:47]} (25... Rfc8 $16 26. Bxc8 Rxc8) 26. Rf3 $18 {[%emt 0:00:25]} Qxh4 {[%emt 0:00:02]} 27. Bxd4 $2 {[%emt 0:02:12] [#]} (27. a4 $18) 27... Bxd4+ $2 {[%emt 0:00:35]} (27... Ng4 28. Rh3 Qe7 29. Bxb6 (29. Nc5 Rfd8 $16) 29... axb6 30. b5 $16) (27... Bc6 $1 $17 {[%cal Rc6f3] stays on course.} 28. Raf1 (28. Qxe6+ $2 Kh8 $19) 28... Bd5) 28. Qxd4 $16 {[%emt 0:00:03]} Bc6 {[%emt 0:00:03]} 29. Rh3 {[%emt 0:00:06]} Qg4 {[%emt 0:02:30][%csl Gc6][%cal Rg4g2] [#]} 30. Qf2 {[%emt 0:00:20]} Qg6 {[%emt 0:00:34]} 31. Rc1 {[%emt 0:00:38]} Bd5 {[%emt 0:01:08]} 32. Rc7 {[%emt 0:02:49]} Ng4 {[%emt 0:00:57]} 33. Qg3 {[%emt 0:00:56]} (33. Qxa7 Ra8 34. Qb6 Rfb8 $11) 33... Qe8 {[%emt 0:02:18]} (33... Rf7 $142 34. Rc3 Rd7) 34. Nf2 {[%emt 0:00:10]} (34. Qh4 $6 Qg6 35. Ne1 (35. Rxa7 Ra8 $18) 35... h6) 34... Qd8 {[%emt 0:02:39]} 35. Qc3 {[%emt 0:00:19]} (35. Rxa7 Qb6 36. Re7 Rbc8 $19) 35... Rf7 {[%emt 0:02:15]} 36. Rxf7 {[%emt 0:01:48] White is more active.} Kxf7 {[%emt 0:01:30]} 37. d4 {[%emt 0:01:13]} (37. Nxg4 fxg4 38. Re3 h5 $16) ({White should try} 37. Nd3 $18) 37... Rb6 {[%emt 0:00:32][%cal Bb8b6,Bb6c6,Bc6c2][%mdl 32]} 38. Be2 {[%emt 0:01:07]} Rc6 {[%emt 0:00:20]} 39. Qd2 {[%emt 0:00:17]} Qc8 {[%emt 0:01:13] And now ...Rc2 would win.} 40. Bxg4 {[%emt 0:00:34]} (40. Nd1 $11 {remains equal.}) 40... fxg4 $17 {[%emt 0:01:17]} 41. Rg3 {[%emt 0:03:11]} ({Not} 41. Nxg4 $2 Rc2 42. Qxc2 Qxc2 $19) ({Wrong is} 41. Rxh7 $2 Kg8 42. Rxg7+ Kxg7 $19) 41... h5 {[%emt 0:11:39][%mdl 1024] Black has strong compensation.} 42. Nd3 {[%emt 0:11:56][%cal Bf2d3,Bd3f4,Bf4d5][%mdl 32] Against Rc1+} Rc2 {[%emt 0:00:17]} 43. Qe3 {[%emt 0:00:07][%cal Of4f5] [#]} Qc3 {[%emt 0:02:04]} (43... Qd8 $1 $17 {...Ra2 is the strong threat.} 44. Ne1 Rb2) 44. f5 $1 $11 {[%emt 0:00:26][%cal Bf4f5,Bf5e6,Be6e7][%mdl 32] The position is equal.} Qa1+ {[%emt 0:02:18]} (44... exf5 $2 45. e6+ Ke8 46. Qe5 $18) 45. Kh2 {[%emt 0:01:22] Strongly threatening Qg5. Dancing on a razor blade.} Qf1 {[%emt 0:03:17][%cal Rc2g2]} 46. fxe6+ {[%emt 0:01:13]} Kg8 {[%emt 0:05:25][%cal Rc2g2]} 47. Nf4 {[%emt 0:09:33]} Rc1 {[%emt 0:01:09]} 48. Qxc1 {[%emt 0:02:44]} Qxc1 {[%emt 0:00:01]} 49. Nxd5 {[%emt 0:00:05][%mdl 4096] Endgame Threatens to win with e7. KQ-KRN} Qg5 {[%emt 0:03:44]} (49... Qc4 $5 50. Rc3 $8 (50. e7 $2 Kf7 $19) 50... Qxd4 $11) 50. e7 $1 {[%emt 0:03:16]} Kf7 {[%emt 0:01:04] aiming for ...Qh4+.} 51. Rc3 {[%emt 0:00:13][%cal Oe5e6]} Qh4+ {[%emt 0:02:01]} 52. Kg1 {[%emt 0:00:05][%cal Oe5e6] Threatening mate with e6+!} Qe1+ {[%emt 0:00:01]} 53. Kh2 {[%emt 0:00:03][%cal Oe5e6] Hoping for e6+!} Qh4+ {[%emt 0:00:56]} 54. Kg1 {[%emt 0:00:04][%cal Oe5e6] White wants to mate with e6+!} Qe1+ {[%emt 0:00:13]} 55. Kh2 {[%emt 0:00:04][%cal Oe5e6]} Qh4+ {[%emt 0:00:05] A wild game.  Weighted Error Value: White=0.28 (precise) /Black=0.29 (precise)} 1/2-1/2

[Event "USA Championship Women 2022"]
[Site "Saint Louis"]
[Date "2022.10.15"]
[Round "10.7"]
[White "Eswaran, Ashritha"]
[Black "Tokhirjonova, Gulrukhbegim"]
[Result "0-1"]
[ECO "A04"]
[WhiteElo "2365"]
[BlackElo "2336"]
[Annotator "TA"]
[PlyCount "134"]
[EventDate "2022.09.05"]
[EventType "tourn"]
[EventCountry "USA"]
[SourceTitle "playchess.com"]
[Source "ChessBase"]
[SourceQuality "1"]
[TimeControl "40/5400+30:1800+30"]

{[%evp 12,134,-8,-17,-12,-37,-31,-25,0,-10,10,-18,6,2,16,19,20,11,52,3,28,26,41,0,0,0,7,0,0,-70,-86,-62,-76,-94,-87,-90,-70,-92,0,-7,0,0,0,0,0,0,0,0,0,0,0,0,0,-20,0,-15,-10,-19,0,0,0,0,0,-7,0,-25,-12,-21,-3,-32,0,-11,-20,-33,-11,-32,0,-91,-101,-113,-105,-168,-157,-146,-154,-285,-283,-299,-287,-282,-234,-255,-235,-233,-226,-305,-292,-283,-268,-299,-291,-249,-177,-175,-168,-208,-187,-409,-396,-529,-525,-1670,-1624,-1414,-1358,-5369,-5085,-4594,-4133,-1838,-1838,-1356,-860,-699,-616]} 1. Nf3 {[%emt 0:00:06]} c5 {[%emt 0:02:23]} 2. c4 {[%emt 0:02:15]} Nc6 {[%emt 0:01:09]} 3. b3 {[%emt 0:00:55]} e5 {[%emt 0:02:44]} 4. Nc3 {[%emt 0:01:38]} d6 {[%emt 0:01:46]} 5. Bb2 {[%emt 0:03:07]} g6 {[%emt 0:00:48]} 6. e3 {[%emt 0:01:29]} Bg7 {[%emt 0:00:10]} 7. d3 {[%emt 0:02:55]} Nge7 {[%emt 0:02:50] A04: Unusual lines after 1 Nf3 and King's Indian Attack.} 8. Be2 {[%emt 0:00:57]} O-O {[%emt 0:01:22]} 9. O-O {[%emt 0:01:00]} h6 {[%emt 0:01:30] Black has an edge.} 10. a3 {[%emt 0:05:04] [#]} Kh7 $146 {[%emt 0:03:00]} ({Predecessor:} 10... Be6 11. Rb1 a5 12. Nb5 d5 13. cxd5 Nxd5 14. Nd2 Qb6 15. a4 Qd8 16. Rc1 Qe7 17. Qc2 b6 18. Nc4 Rab8 19. Qb1 Ndb4 20. Rfd1 {½-½ (20) Lenic,L (2630)-Lalic,B (2476) Bol 2013}) 11. Ne1 {[%emt 0:02:28][%cal Bf3e1,Be1c2,Bc2e3][%mdl 32]} g5 {[%emt 0:07:44]} 12. e4 {[%emt 0:08:28]} f5 {[%emt 0:02:18]} (12... Nd4 {is interesting.} 13. Bh5 Ng6 14. Nd5 Nf4) 13. exf5 {[%emt 0:01:27]} Bxf5 {[%emt 0:00:42]} 14. Nc2 {[%emt 0:00:27]} Ng6 {[%emt 0:04:12][%cal Be7g6,Bg6f4,Bf4e2][%mdl 32]} 15. Bg4 {[%emt 0:04:44]} (15. Ne3 $14) 15... Qd7 {[%emt 0:09:15]} 16. Bxf5 {[%emt 0:04:01]} Rxf5 {[%emt 0:01:29]} 17. Qg4 {[%emt 0:02:45]} Nf4 {[%emt 0:06:56]} 18. Ne3 {[%emt 0:06:05]} Rf7 {[%emt 0:00:22] Threatens to win with ...Qxg4.} 19. Qxd7 {[%emt 0:00:35]} Rxd7 {[%emt 0:00:05]} 20. Rfd1 {[%emt 0:00:09]} (20. Rad1 $1 $11) 20... e4 $1 $15 {[%emt 0:06:08]} ({Much weaker is} 20... Nd4 21. g3 Nde2+ 22. Nxe2 Nxe2+ 23. Kf1 $11) 21. Na4 {[%emt 0:00:47]} ({Don't go for} 21. dxe4 $2 Bxc3 22. Ra2 Nd4 $1 $19) 21... exd3 {[%emt 0:02:05]} 22. g3 {[%emt 0:01:48]} Ne2+ {[%emt 0:03:58]} 23. Kg2 {[%emt 0:00:19]} Rf8 {[%emt 0:02:40] Black is much more active.} 24. Bxg7 {[%emt 0:02:21]} Kxg7 {[%emt 0:01:12]} ({Better is} 24... Rxg7 $17 25. Rxd3 Nf4+ $1 26. gxf4 gxf4+ 27. Ng4 Rxg4+ 28. Kh1 Nd4) 25. Rxd3 $11 {[%emt 0:01:01] Nxc5 is the strong threat.} Rdf7 {[%emt 0:00:32]} 26. Rf1 {[%emt 0:01:13]} Ned4 {[%emt 0:00:35]} 27. b4 {[%emt 0:06:41]} b6 {[%emt 0:02:11]} 28. Nc3 {[%emt 0:00:59]} Re8 {[%emt 0:02:48]} 29. Ncd5 $1 {[%emt 0:04:22]} Ne5 {[%emt 0:05:41]} 30. Rdd1 {[%emt 0:02:11]} Nef3 {[%emt 0:00:12]} 31. h3 {[%emt 0:08:21]} h5 {[%emt 0:01:15][%cal Bh6h5,Bh5h4][%mdl 32]} 32. Nc3 {[%emt 0:01:00]} Kg6 {[%emt 0:01:46]} 33. Rh1 {[%emt 0:02:50]} Re6 {[%emt 0:01:49]} 34. Rhf1 {[%emt 0:00:26]} h4 {[%emt 0:01:55]} 35. Ncd5 {[%emt 0:01:42]} Nb3 {[%emt 0:03:57]} 36. Rd3 {[%emt 0:02:20]} Nbd4 {[%emt 0:08:05]} 37. Rdd1 {[%emt 0:00:17]} Kg7 {[%emt 0:01:55]} 38. Rd3 {[%emt 0:00:48]} Re8 {[%emt 0:01:44]} 39. Rdd1 {[%emt 0:00:51]} Ref8 {[%emt 0:02:18]} 40. Nc3 {[%emt 0:01:23]} Re8 {[%emt 0:01:59] Strongly threatening ...hxg3.} 41. Ncd5 {[%emt 0:30:25]} Kf8 {[%emt 0:34:19]} 42. Rd3 {[%emt 0:01:38]} Re6 {[%emt 0:00:20]} 43. Rdd1 {[%emt 0:03:54]} Nb3 {[%emt 0:00:00]} 44. Rd3 {[%emt 0:00:00] [#]} (44. g4 $1 $11 {remains equal.}) 44... Nbd2 $1 $36 {[%emt 0:00:00][%mdl 2048] Black is on the roll. Black converts the advantage convincingly.} 45. Rd1 {[%emt 0:00:00]} Ne4 {[%emt 0:00:00] aiming for ...Ne5.} 46. Nc3 {[%emt 0:00:00]} (46. Nf5 $17 Ne5 47. g4) 46... Ne5 $19 {[%emt 0:00:00][%csl LRd3,LRf2][%cal Bf3e5,Be5d3,Bd3f2][%mdl 32]} 47. Nxe4 {[%emt 0:00:00]} Nxd3 {[%emt 0:00:00]} 48. f3 {[%emt 0:00:00] [#]} (48. Rxd3 $17 {was the only defense.} Rxe4 49. Rxd6) 48... Nf2 $1 {[%emt 0:00:00][%mdl 512]} 49. Rxd6 {[%emt 0:00:00]} Rxd6 {[%emt 0:00:00]} 50. Nxd6 {[%emt 0:00:00][%mdl 4096] Endgame KRN-KNN} Rd7 {[%emt 0:00:00]} 51. bxc5 {[%emt 0:00:00]} bxc5 {[%emt 0:00:00]} 52. Nef5 {[%emt 0:00:00]} Nd3 {[%emt 0:00:00]} 53. f4 {[%emt 0:00:00]} gxf4 {[%emt 0:00:00]} 54. gxh4 {[%emt 0:00:00]} Ne5 {[%emt 0:00:00]} 55. h5 {[%emt 0:00:00]} Rh7 {[%emt 0:00:00]} 56. h6 {[%emt 0:00:00]} Nf7 {[%emt 0:00:00]} 57. Ne4 {[%emt 0:00:00]} Nxh6 {[%emt 0:00:00]} 58. Nfd6 {[%emt 0:00:00]} Nf7 {[%emt 0:00:00]} 59. Nb5 {[%emt 0:00:56]} (59. Nxf7 Rxf7 60. Kf3) 59... Ne5 {[%emt 0:00:00]} 60. Nxc5 {[%emt 0:00:16]} f3+ {[%emt 0:00:00] Black is clearly winning.} 61. Kf2 {[%emt 0:00:52]} Rxh3 {[%emt 0:00:13]} 62. Ne4 {[%emt 0:00:57]} Ng4+ {[%emt 0:00:39]} 63. Kg1 {[%emt 0:00:19]} f2+ {[%emt 0:01:55]} 64. Nxf2 {[%emt 0:00:08]} Rg3+ {[%emt 0:00:04]} 65. Kf1 {[%emt 0:00:06]} Rf3 {[%emt 0:00:03]} 66. Kg2 {[%emt 0:00:06]} Rxf2+ {[%emt 0:00:02]} 67. Kg3 {[%emt 0:00:05]} a6 {[%emt 0:00:09] Weighted Error Value: White=0.22 (precise) /Black=0.12 (very precise)} 0-1

[Event "USA Championship Women 2022"]
[Site "Saint Louis"]
[Date "2022.10.17"]
[Round "11.1"]
[White "Tokhirjonova, Gulrukhbegim"]
[Black "Yu, Jennifer"]
[Result "0-1"]
[ECO "C43"]
[WhiteElo "2336"]
[BlackElo "2297"]
[Annotator "TA"]
[PlyCount "130"]
[EventDate "2022.09.05"]
[EventType "tourn"]
[EventCountry "USA"]
[SourceTitle "playchess.com"]
[Source "ChessBase"]
[SourceQuality "1"]
[TimeControl "40/5400+30:1800+30"]

{[%evp 17,130,14,10,9,10,0,0,0,-9,0,0,0,0,-14,-14,-16,0,-11,-7,-63,-50,-54,-20,-20,-26,-16,-20,-22,-20,-20,-25,-31,-31,-32,-30,-57,-45,-56,-34,-35,-34,-59,-46,-58,-58,-57,-57,-86,-79,-106,-58,-71,-8,-8,-8,-8,-8,-8,0,-4,0,0,-8,-8,-5,-8,-8,-96,-96,-144,-151,-470,-608,-568,-606,-592,-592,-592,-592,-5642,-592,-592,-592,-644,-274,-182,-140,-1576,-1560,-1177,-1190,-29975,-29976,-29977,-29977,-29980,-29981,-29981,-29981,-29981,-29982,-29983,-29979,-29979,-29980,-29981,-29982,-29987,-29988,-29988,-29989,-29989,-29989,-29991,-29990]} 1. e4 {[%emt 0:08:15]} e5 {[%emt 0:00:26]} 2. Nf3 {[%emt 0:00:15]} Nf6 {[%emt 0:00:14]} 3. d4 {[%emt 0:02:15]} Nxe4 {[%emt 0:00:33]} 4. Bd3 {[%emt 0:00:59]} d5 {[%emt 0:00:12]} 5. Nxe5 {[%emt 0:00:22]} Nd7 {[%emt 0:00:18]} 6. Nxd7 {[%emt 0:04:41]} Bxd7 {[%emt 0:01:10]} 7. O-O {[%emt 0:02:07]} Bd6 {[%emt 0:08:16]} 8. Nc3 {[%emt 0:04:59] now scores much better than the old 8.c4.} Nxc3 {[%emt 0:03:48]} 9. bxc3 {[%emt 0:00:39]} O-O {[%emt 0:00:09]} 10. Qh5 {[%emt 0:01:38][%csl Gd3,LRd5,LRh7][%cal Rh5h7] Against Qh4. C43: Petroff Defence: 3 d4.} f5 {[%emt 0:00:11]} 11. c4 {[%emt 0:04:14]} Qf6 {[%emt 0:13:35]} 12. c3 {[%emt 0:11:35] The position is equal.} dxc4 {[%emt 0:05:22]} 13. Bxc4+ {[%emt 0:00:21]} Be6 {[%emt 0:00:05] [#]} 14. Bd3 $146 {[%emt 0:06:50]} ({Predecessor:} 14. Bb3 Qf7 15. Bxe6 Qxe6 16. Qf3 c6 17. Bd2 Rae8 18. Rfe1 {1-0 (37) Fernandez,J (2160)-Grkinic,G (1767) LSS email 2013}) 14... h6 {[%emt 0:20:05]} 15. Re1 {[%emt 0:04:17]} Rae8 {[%emt 0:01:10]} 16. Bd2 {[%emt 0:01:57]} Re7 {[%emt 0:02:02]} 17. h4 {[%emt 0:09:42][%cal Od2g5]} Bd5 {[%emt 0:14:59]} 18. Be3 {[%emt 0:16:54]} (18. Rxe7 $11 Bxe7 19. Re1) 18... c6 {[%emt 0:02:40] Black has more active pieces.} 19. c4 {[%emt 0:06:24]} Be4 {[%emt 0:02:33]} (19... f4 20. Bd2 Bf7 21. Qf3) 20. Bg5 $1 {[%emt 0:04:04]} Qf7 {[%emt 0:07:32]} (20... hxg5 21. hxg5 Bf3 22. gxf3 (22. gxf6 $2 {perishes.} Rxe1+ 23. Rxe1 Bxh5 $19) (22. Rxe7 Qxd4 23. gxf3 Bxe7 $14) 22... Rxe1+ 23. Rxe1 $18) (20... Qxd4 21. Bxe7 Bxe7 22. Rad1 $16) 21. Qxf7+ {[%emt 0:00:14]} Rexf7 {[%emt 0:00:03]} 22. Bxe4 {[%emt 0:00:09] Black must now prevent Bd3.} hxg5 {[%emt 0:01:50]} 23. Bc2 {[%emt 0:01:36] Threatens to win with c5.} Bb4 {[%emt 0:00:32]} ({Don't do} 23... gxh4 24. c5 Be7 25. Bb3 $16) 24. Re6 {[%emt 0:04:04]} gxh4 {[%emt 0:00:35]} 25. Rb1 {[%emt 0:00:09]} a5 {[%emt 0:02:36]} 26. d5 {[%emt 0:00:27]} cxd5 {[%emt 0:02:04]} 27. cxd5 {[%emt 0:00:01]} Rd8 {[%emt 0:01:00]} 28. Rd1 {[%emt 0:02:54]} Bd6 {[%emt 0:04:28]} 29. Rb1 {[%emt 0:00:18]} Kf8 {[%emt 0:01:12]} 30. Kf1 {[%emt 0:00:28]} Bb4 {[%emt 0:01:16]} 31. Rd1 {[%emt 0:00:10]} Rfd7 {[%emt 0:00:55]} 32. Bb3 {[%emt 0:01:54]} Re7 {[%emt 0:01:11]} 33. Rg6 {[%emt 0:01:13]} a4 {[%emt 0:02:11]} ({Black should try} 33... Rd6 $17 34. Rxd6 Bxd6) 34. d6 {[%emt 0:00:47]} Rxd6 {[%emt 0:00:48]} (34... Re5 $17 35. Bd5 Rxd6 36. Rxd6 Bxd6 37. Bxb7 Ke7) 35. Rgxd6 $11 {[%emt 0:00:11]} Bxd6 {[%emt 0:00:03]} 36. Rxd6 {[%emt 0:00:52]} axb3 {[%emt 0:00:04]} 37. axb3 $17 {[%emt 0:00:05][%mdl 4096] Endgame KR-KR} Kf7 {[%emt 0:00:27]} 38. Rb6 {[%emt 0:00:03]} g6 {[%emt 0:00:44]} 39. Kg1 {[%emt 0:00:38]} Kg7 {[%emt 0:00:34]} 40. Kh2 {[%emt 0:00:20]} Kh6 {[%emt 0:00:04]} 41. Kh3 {[%emt 0:31:22]} Kh5 {[%emt 0:32:19] ...g5 is the strong threat.} 42. g3 {[%emt 0:00:00]} (42. f3 $11) 42... hxg3 {[%emt 0:00:00]} 43. Kxg3 {[%emt 0:00:00]} ({Better is} 43. fxg3 g5 44. Rb5) 43... g5 {[%emt 0:00:00]} 44. Rb5 $2 {[%emt 0:00:00]} (44. Kf3 $17 {is a better chance.}) 44... f4+ $1 $19 {[%emt 0:00:00]} 45. Kf3 {[%emt 0:00:00]} Rc7 {[%emt 0:00:00]} 46. Rb6 {[%emt 0:00:00]} Rc3+ {[%emt 0:00:00]} 47. Kg2 {[%emt 0:00:00] [#]} Kh4 $1 {[%emt 0:00:00]} 48. Rh6+ {[%emt 0:00:00]} Kg4 {[%emt 0:00:00]} 49. Rb6 {[%emt 0:00:00] [#]} Rc7 {[%emt 0:00:00]} 50. Rb4 {[%emt 0:00:00]} Kh4 {[%emt 0:00:00] And now ...Rc3 would win.} 51. Kh2 {[%emt 0:00:00]} Rd7 {[%emt 0:02:12]} 52. Rb6 $2 {[%emt 0:04:05][%mdl 8192] This move loses the game for White.} (52. Kg2 $17) 52... Rd2 {[%emt 0:02:30]} 53. Kg2 {[%emt 0:00:06]} g4 {[%emt 0:00:03][%cal Bg5g4,Bg4g3][%mdl 32] ( -> ...f3+)} 54. Rxb7 {[%emt 0:02:00]} g3 {[%emt 0:00:10] Black mates.} 55. Rh7+ {[%emt 0:00:08]} Kg5 {[%emt 0:00:15]} 56. Rg7+ {[%emt 0:00:59]} Kf6 {[%emt 0:00:06]} 57. Rg8 {[%emt 0:00:28]} Rxf2+ {[%emt 0:00:06]} 58. Kg1 {[%emt 0:00:34]} Rb2 {[%emt 0:00:13]} 59. b4 {[%emt 0:00:44]} Rxb4 {[%emt 0:00:22]} 60. Kg2 {[%emt 0:00:09]} Rb2+ {[%emt 0:00:07]} 61. Kf3 {[%emt 0:00:51]} Rf2+ {[%emt 0:00:11]} 62. Kg4 {[%emt 0:00:31]} g2 {[%emt 0:01:52]} 63. Kh3 {[%emt 0:00:14]} f3 {[%emt 0:00:03]} 64. Rf8+ {[%emt 0:00:47]} Kg7 {[%emt 0:00:15]} 65. Rf5 {[%emt 0:00:13]} Rf1 {[%emt 0:00:15] Weighted Error Value: White=0.34/Black=0.06 (flawless)} ({Inferior is} 65... g1=Q 66. Rg5+ Kf6 67. Rxg1 $11) 0-1

[Event "USA Championship Women 2022"]
[Site "Saint Louis"]
[Date "2022.10.17"]
[Round "11.2"]
[White "Cervantes Landeiro, Thalia"]
[Black "Eswaran, Ashritha"]
[Result "1-0"]
[ECO "A06"]
[WhiteElo "2272"]
[BlackElo "2365"]
[Annotator "TA"]
[PlyCount "85"]
[EventDate "2022.09.05"]
[EventType "tourn"]
[EventCountry "USA"]
[SourceTitle "playchess.com"]
[Source "ChessBase"]
[SourceQuality "1"]
[TimeControl "40/5400+30:1800+30"]

{[%evp 10,85,0,0,0,0,0,-9,0,0,0,0,0,0,9,4,20,-19,8,-22,-7,-9,-14,-1,-9,-21,-25,-19,1,1,39,36,41,39,39,33,24,22,25,35,43,0,97,105,240,234,363,385,392,379,402,414,383,272,277,277,276,276,259,234,454,454,400,408,1157,1111,1053,985,1221,1211,29981,29977,29987,29988,29988,29989,29988,29980]} 1. Nf3 {[%emt 0:00:23]} d5 {[%emt 0:00:14]} 2. e3 {[%emt 0:00:00]} Nf6 {[%emt 0:00:28]} 3. b3 {[%emt 0:00:29]} Bf5 {[%emt 0:01:02]} 4. Bb2 {[%emt 0:00:48]} e6 {[%emt 0:00:42]} 5. Be2 {[%emt 0:04:38]} h6 {[%emt 0:00:57]} 6. O-O {[%emt 0:02:29]} Bd6 {[%emt 0:01:30] A06: Réti Opening: 1 Nf3 d5.} 7. Ne5 {[%emt 0:10:28]} O-O {[%emt 0:02:57]} 8. f4 {[%emt 0:04:59]} Nbd7 {[%emt 0:01:43] The position is equal.} 9. d3 {[%emt 0:09:03]} Bh7 {[%emt 0:01:30]} 10. Nd2 {[%emt 0:05:24] [#]} Bc5 $146 {[%emt 0:04:43]} ({Predecessor:} 10... c5 11. Ndf3 Qc7 12. Qe1 d4 13. Nc4 dxe3 14. Nxd6 Qxd6 15. Ne5 Nd5 16. Qg3 f6 {1-0 (52) Sanal,V (2557)-Nasuta,G (2535) Chess.com INT 2020}) 11. d4 {[%emt 0:00:00]} Be7 {[%emt 0:04:38]} 12. Bd3 {[%emt 0:00:00]} c5 {[%emt 0:03:07]} 13. Qf3 {[%emt 0:03:00]} Qa5 {[%emt 0:04:18]} 14. Rad1 {[%emt 0:07:10]} Bxd3 {[%emt 0:05:51]} 15. Nxd3 {[%emt 0:09:45]} Rac8 {[%emt 0:08:17]} (15... Qxa2 $2 16. Ra1 Qxa1 17. Rxa1 $18) 16. dxc5 {[%emt 0:06:22]} Bxc5 {[%emt 0:01:48]} 17. Nxc5 {[%emt 0:01:26]} Rxc5 {[%emt 0:00:52]} 18. c4 {[%emt 0:02:32]} b5 {[%emt 0:05:41][%cal Rb5c4]} 19. a3 {[%emt 0:03:28] [#] And now b4 would win.} Rc6 {[%emt 0:07:46][%cal Rb5c4]} ({But not} 19... bxc4 20. b4 Qb5 21. Bxf6 (21. bxc5 $2 Qxb2 22. Qf2 Qb5 $17) 21... Nxf6 22. bxc5 $16) 20. b4 {[%emt 0:01:54]} Qa4 {[%emt 0:00:05]} 21. cxd5 {[%emt 0:07:19]} exd5 {[%emt 0:01:30]} 22. e4 {[%emt 0:04:57][%cal Be3e4,Be4d5][%mdl 32]} Qc2 {[%emt 0:03:00][%csl LRb2,LRe4]} 23. exd5 {[%emt 0:00:00]} Rd6 {[%emt 0:01:29]} 24. Bxf6 {[%emt 0:01:11]} Nxf6 {[%emt 0:00:07]} 25. Nb3 {[%emt 0:02:43][%cal Bd2b3,Bb3d4,Bd4f5][%mdl 32]} Re8 {[%emt 0:03:08]} (25... Rfd8 $11 {keeps the balance.}) 26. Nd4 $36 {[%emt 0:05:18][%csl LRb5,LRc2][%mdl 2048] Black is under strong pressure.} Qc4 {[%emt 0:04:36] [#] A mistake that costs the game.} (26... Qc8 $16) 27. Nf5 $1 $18 {[%emt 0:00:55]} Rxd5 {[%emt 0:03:35]} (27... Rd7 {was necessary.} 28. Qg3 g6 29. Nxh6+ Kg7) 28. Ne3 {[%emt 0:06:42]} Rxe3 {[%emt 0:00:52]} 29. Qxe3 {[%emt 0:00:00]} a6 30. Rxd5 {[%emt 0:01:41]} Qxd5 {[%emt 0:01:05][%mdl 4096] Endgame KQR-KQN} 31. h3 {[%emt 0:00:13] Threatens to win with Re1.} Ne4 {[%emt 0:02:43]} 32. f5 {[%emt 0:01:07]} Nf6 {[%emt 0:02:32]} 33. Qf3 {[%emt 0:00:00] Black must now prevent Qxd5.} Qd4+ {[%emt 0:00:46]} 34. Kh2 {[%emt 0:00:29]} Ne4 $2 {[%emt 0:01:33]} (34... Kh7 35. Re1 Qd8) 35. Qf4 {[%emt 0:01:21] aiming for Re1.} Qd5 {[%emt 0:04:00]} 36. Rc1 {[%emt 0:01:34]} Nd6 {[%emt 0:00:48]} (36... Kh7 $142 37. Re1 Nf6) 37. Rc5 {[%emt 0:01:25]} Qd3 {[%emt 0:01:53]} 38. f6 {[%emt 0:00:00]} g5 {[%emt 0:00:25]} 39. Qe5 {[%emt 0:00:00]} g4 {[%emt 0:03:02]} 40. hxg4 {[%emt 0:00:00] White mates.} Qe4 {[%emt 0:02:18]} 41. Qxd6 {[%emt 0:27:47]} Kh7 {[%emt 0:00:39]} 42. Rc8 {[%emt 0:00:19]} Qxg4 {[%emt 0:00:20]} 43. Qd3+ {[%emt 0:00:42] Weighted Error Value: White=0.07 (flawless) /Black=0.46} 1-0